[Event "Early-Titled-Tuesday-Blitz-March-12-2024"]
[Site "Chess.com"]
[Date "2024.03.12"]
[Round "2"]
[White "eCztery"]
[Black "Blitzstream"]
[Result "0-1"]
[WhiteElo "2461"]
[BlackElo "2799"]
[TimeControl "180+1"]
[EndTime "8:16:57 PDT"]
[Termination "Blitzstream won by resignation"]

1. e4 {[%clk 0:03:00.9]} 1... c5 {[%clk 0:03:00.1]} 2. Nf3 {[%clk 0:02:58.9]}
2... d6 {[%clk 0:03:00]} 3. d4 {[%clk 0:02:55.8]} 3... cxd4 {[%clk 0:03:00.9]}
4. Qxd4 {[%clk 0:02:56.4]} 4... Nf6 {[%clk 0:03:01.8]} 5. Bg5 {[%clk 0:02:56]}
5... Nc6 {[%clk 0:03:01.7]} 6. Bb5 {[%clk 0:02:56.2]} 6... Bd7 {[%clk
0:02:59.8]} 7. Bxc6 {[%clk 0:02:56.5]} 7... bxc6 {[%clk 0:03:00]} 8. c4 {[%clk
0:02:51.3]} 8... e5 {[%clk 0:02:53.2]} 9. Qd3 {[%clk 0:02:51.4]} 9... Be7 {[%clk
0:02:51.6]} 10. Bxf6 {[%clk 0:02:47.9]} 10... gxf6 {[%clk 0:02:47.6]} 11. O-O
{[%clk 0:02:47.3]} 11... O-O {[%clk 0:02:46.2]} 12. Nh4 {[%clk 0:02:46.6]} 12...
Kh8 {[%clk 0:02:44.2]} 13. Nc3 {[%clk 0:02:43.8]} 13... Rg8 {[%clk 0:02:37.6]}
14. Rad1 {[%clk 0:02:36.5]} 14... Qb6 {[%clk 0:02:27.7]} 15. Ne2 {[%clk
0:02:28]} 15... Rg4 {[%clk 0:02:23.6]} 16. Nf5 {[%clk 0:02:13.2]} 16... Bxf5
{[%clk 0:02:21.4]} 17. exf5 {[%clk 0:02:14.1]} 17... Rag8 {[%clk 0:02:07]} 18.
Ng3 {[%clk 0:02:05.7]} 18... Qxb2 {[%clk 0:02:06]} 19. Qf3 {[%clk 0:01:43.3]}
19... Qxa2 {[%clk 0:01:32]} 20. Ra1 {[%clk 0:01:37.5]} 20... Qxc4 {[%clk
0:01:30.3]} 21. Rxa7 {[%clk 0:01:38.1]} 21... Bf8 {[%clk 0:01:28.5]} 22. h3
{[%clk 0:01:33.6]} 22... R4g5 {[%clk 0:01:14.5]} 23. Rc7 {[%clk 0:01:05.4]}
23... Qd4 {[%clk 0:00:40.7]} 24. Kh2 {[%clk 0:00:47.7]} 24... c5 {[%clk
0:00:28.4]} 25. Rxf7 {[%clk 0:00:45.3]} 25... d5 {[%clk 0:00:26.7]} 26. Rd1
{[%clk 0:00:36.8]} 26... Qc4 {[%clk 0:00:27]} 27. Rxd5 {[%clk 0:00:33.8]} 27...
e4 {[%clk 0:00:23.8]} 28. Nxe4 {[%clk 0:00:20.5]} 28... Rxg2+ {[%clk 0:00:23.4]}
29. Qxg2 {[%clk 0:00:21.4]} 29... Rxg2+ {[%clk 0:00:23.3]} 30. Kxg2 {[%clk
0:00:18.1]} 30... Qxe4+ {[%clk 0:00:23.2]} 0-1

[Event "Early-Titled-Tuesday-Blitz-March-12-2024"]
[Site "Chess.com"]
[Date "2024.03.12"]
[Round "2"]
[White "bolwin"]
[Black "StankovicIvan"]
[Result "0-1"]
[WhiteElo "2236"]
[BlackElo "2524"]
[TimeControl "180+1"]
[EndTime "8:16:58 PDT"]
[Termination "StankovicIvan won by resignation"]

1. Nf3 {[%clk 0:02:59.9]} 1... g6 {[%clk 0:02:56.9]} 2. c4 {[%clk 0:03:00.7]}
2... Bg7 {[%clk 0:02:57.4]} 3. d4 {[%clk 0:03:01.1]} 3... d6 {[%clk 0:02:57.5]}
4. Nc3 {[%clk 0:03:01.4]} 4... Nd7 {[%clk 0:02:57.2]} 5. e4 {[%clk 0:03:01]}
5... e5 {[%clk 0:02:56.9]} 6. Be2 {[%clk 0:03:01.3]} 6... Ne7 {[%clk 0:02:56.7]}
7. O-O {[%clk 0:03:01]} 7... O-O {[%clk 0:02:54.7]} 8. Re1 {[%clk 0:02:55.7]}
8... h6 {[%clk 0:02:54.4]} 9. h3 {[%clk 0:02:55.2]} 9... f5 {[%clk 0:02:54.5]}
10. exf5 {[%clk 0:02:53.8]} 10... Nxf5 {[%clk 0:02:54.3]} 11. dxe5 {[%clk
0:02:53.7]} 11... dxe5 {[%clk 0:02:54.6]} 12. Nd5 {[%clk 0:02:29.7]} 12... c6
{[%clk 0:02:49.3]} 13. Ne3 {[%clk 0:02:29]} 13... Nd4 {[%clk 0:02:47.9]} 14. Ng4
{[%clk 0:02:22.9]} 14... h5 {[%clk 0:02:12.6]} 15. Nh6+ {[%clk 0:02:20.7]} 15...
Kh8 {[%clk 0:02:12.3]} 16. Nxd4 {[%clk 0:01:55.5]} 16... exd4 {[%clk 0:02:11]}
17. Bd3 {[%clk 0:01:55.6]} 17... Ne5 {[%clk 0:01:58.3]} 18. Rxe5 {[%clk
0:01:44.4]} 18... Bxe5 {[%clk 0:01:57.3]} 19. Bxg6 {[%clk 0:01:44.2]} 19... Qf6
{[%clk 0:01:56]} 20. Nf7+ {[%clk 0:01:30.1]} 20... Rxf7 {[%clk 0:01:08]} 21.
Bxf7 {[%clk 0:01:31]} 21... Qxf7 {[%clk 0:01:05.7]} 22. Bg5 {[%clk 0:01:28.5]}
22... Bf5 {[%clk 0:00:59.1]} 23. Qe2 {[%clk 0:01:16.4]} 23... Re8 {[%clk
0:00:55.8]} 24. Re1 {[%clk 0:01:16.2]} 24... Bh2+ {[%clk 0:00:54.6]} 25. Kxh2
{[%clk 0:01:14.9]} 25... Rxe2 {[%clk 0:00:55.2]} 26. Rxe2 {[%clk 0:01:15.8]}
26... Qxc4 {[%clk 0:00:53.4]} 27. Re7 {[%clk 0:01:09.5]} 27... Kg8 {[%clk
0:00:46.2]} 28. Bf6 {[%clk 0:01:07.9]} 28... d3 {[%clk 0:00:45.7]} 29. Bc3
{[%clk 0:00:55.7]} 29... Qf4+ {[%clk 0:00:42.5]} 30. Kg1 {[%clk 0:00:55.2]}
30... d2 {[%clk 0:00:42.3]} 31. Re8+ {[%clk 0:00:53.5]} 31... Kf7 {[%clk
0:00:42.2]} 32. Rd8 {[%clk 0:00:54.4]} 32... Be4 {[%clk 0:00:42]} 33. Bxd2
{[%clk 0:00:44.6]} 33... Qf5 {[%clk 0:00:41.6]} 34. Rb8 {[%clk 0:00:38.9]} 34...
Qd7 {[%clk 0:00:38.6]} 35. Be3 {[%clk 0:00:37.2]} 35... Qd1+ {[%clk 0:00:37.3]}
36. Kh2 {[%clk 0:00:36.9]} 36... Qd6+ {[%clk 0:00:37.5]} 37. Bf4 {[%clk
0:00:36.6]} 37... Qxf4+ {[%clk 0:00:37.7]} 0-1

[Event "Early-Titled-Tuesday-Blitz-March-12-2024"]
[Site "Chess.com"]
[Date "2024.03.12"]
[Round "2"]
[White "Grieve72"]
[Black "Misterfox120"]
[Result "1-0"]
[WhiteElo "2722"]
[BlackElo "2417"]
[TimeControl "180+1"]
[EndTime "8:16:59 PDT"]
[Termination "Grieve72 won by resignation"]

1. d4 {[%clk 0:02:59.9]} 1... d5 {[%clk 0:02:59.2]} 2. e3 {[%clk 0:02:56.8]}
2... Nf6 {[%clk 0:02:58.9]} 3. a3 {[%clk 0:02:55.2]} 3... Bf5 {[%clk 0:02:58.3]}
4. Nf3 {[%clk 0:02:51]} 4... c6 {[%clk 0:02:52.9]} 5. Bd3 {[%clk 0:02:50.7]}
5... Bxd3 {[%clk 0:02:52.4]} 6. Qxd3 {[%clk 0:02:51.3]} 6... e6 {[%clk
0:02:52.9]} 7. O-O {[%clk 0:02:45.3]} 7... Be7 {[%clk 0:02:53]} 8. c4 {[%clk
0:02:44.5]} 8... O-O {[%clk 0:02:52.6]} 9. Nc3 {[%clk 0:02:43.5]} 9... Nbd7
{[%clk 0:02:52.3]} 10. e4 {[%clk 0:02:42.8]} 10... dxe4 {[%clk 0:02:53.2]} 11.
Nxe4 {[%clk 0:02:43.7]} 11... c5 {[%clk 0:02:50.8]} 12. Rd1 {[%clk 0:02:27.6]}
12... cxd4 {[%clk 0:02:44.4]} 13. Nxd4 {[%clk 0:02:25]} 13... Nc5 {[%clk
0:02:33]} 14. Nxc5 {[%clk 0:02:20.7]} 14... Bxc5 {[%clk 0:02:33.9]} 15. Be3
{[%clk 0:02:16.7]} 15... Qe7 {[%clk 0:02:27.8]} 16. b4 {[%clk 0:02:14.9]} 16...
Bb6 {[%clk 0:01:56.8]} 17. c5 {[%clk 0:02:05.9]} 17... Bc7 {[%clk 0:01:56.4]}
18. Nb5 {[%clk 0:02:05.7]} 18... Rad8 {[%clk 0:01:49.1]} 19. Qe2 {[%clk
0:02:00.8]} 19... a6 {[%clk 0:01:47.7]} 20. Nxc7 {[%clk 0:02:00.2]} 20... Qxc7
{[%clk 0:01:48.6]} 21. Qf3 {[%clk 0:01:56.5]} 21... Rd5 {[%clk 0:01:40.2]} 22.
Rxd5 {[%clk 0:01:47.2]} 22... Nxd5 {[%clk 0:01:41.1]} 23. Bd4 {[%clk 0:01:47]}
23... Rd8 {[%clk 0:01:23.9]} 24. Rd1 {[%clk 0:01:46.8]} 24... g6 {[%clk
0:00:20.3]} 25. g3 {[%clk 0:01:41.1]} 25... Rd7 {[%clk 0:00:17.8]} 26. Bb2
{[%clk 0:01:36]} 26... Qd8 {[%clk 0:00:15.9]} 27. h4 {[%clk 0:01:30]} 27... f6
{[%clk 0:00:15.6]} 28. Re1 {[%clk 0:01:19.8]} 28... e5 {[%clk 0:00:14.6]} 29. h5
{[%clk 0:01:18]} 29... Kg7 {[%clk 0:00:09.9]} 30. Rd1 {[%clk 0:01:15.2]} 30...
Ne7 {[%clk 0:00:06.5]} 31. h6+ {[%clk 0:01:09.4]} 31... Kf7 {[%clk 0:00:02.9]}
32. Rxd7 {[%clk 0:01:08.8]} 32... Qxd7 {[%clk 0:00:03.8]} 33. Bxe5 {[%clk
0:01:09.1]} 33... Qd5 {[%clk 0:00:01.6]} 34. Qxf6+ {[%clk 0:01:08.2]} 34... Ke8
{[%clk 0:00:02.2]} 35. Bd6 {[%clk 0:01:04.6]} 35... Nc6 {[%clk 0:00:01.1]} 36.
Qh8+ {[%clk 0:01:02.8]} 36... Kd7 {[%clk 0:00:01.9]} 37. Qxh7+ {[%clk
0:01:03.3]} 37... Kc8 {[%clk 0:00:01.7]} 38. Qh8+ {[%clk 0:01:03.7]} 38... Kd7
{[%clk 0:00:02.4]} 39. Qg7+ {[%clk 0:01:04.1]} 39... Kc8 {[%clk 0:00:03.1]} 40.
h7 {[%clk 0:01:04.5]} 1-0

[Event "Early-Titled-Tuesday-Blitz-March-12-2024"]
[Site "Chess.com"]
[Date "2024.03.12"]
[Round "2"]
[White "Practical-Play"]
[Black "kushagramohan"]
[Result "0-1"]
[WhiteElo "2443"]
[BlackElo "2780"]
[TimeControl "180+1"]
[EndTime "8:17:00 PDT"]
[Termination "kushagramohan won on time"]

1. e4 {[%clk 0:03:00.9]} 1... e5 {[%clk 0:02:59.6]} 2. Nf3 {[%clk 0:02:57.2]}
2... Nc6 {[%clk 0:02:59.5]} 3. Nc3 {[%clk 0:02:55.8]} 3... Nf6 {[%clk
0:02:59.3]} 4. Bb5 {[%clk 0:02:55.6]} 4... Nd4 {[%clk 0:02:58.7]} 5. Bc4 {[%clk
0:02:55.3]} 5... d6 {[%clk 0:02:49.5]} 6. Ng5 {[%clk 0:02:52.1]} 6... Ne6 {[%clk
0:02:49.5]} 7. Nxe6 {[%clk 0:02:40.8]} 7... Bxe6 {[%clk 0:02:50.4]} 8. Bxe6
{[%clk 0:02:38.2]} 8... fxe6 {[%clk 0:02:51.3]} 9. d3 {[%clk 0:02:34.3]} 9...
Be7 {[%clk 0:02:51.3]} 10. O-O {[%clk 0:02:34]} 10... O-O {[%clk 0:02:51.8]} 11.
Ne2 {[%clk 0:02:24.6]} 11... d5 {[%clk 0:02:48.8]} 12. f4 {[%clk 0:02:18.5]}
12... dxe4 {[%clk 0:02:40]} 13. fxe5 {[%clk 0:02:16.8]} 13... exd3 {[%clk
0:02:40.3]} 14. cxd3 {[%clk 0:02:05.4]} 14... Nd5 {[%clk 0:02:38.3]} 15. Bd2
{[%clk 0:01:45.3]} 15... Qd7 {[%clk 0:02:36.7]} 16. Qb3 {[%clk 0:01:41.4]} 16...
Bc5+ {[%clk 0:02:34.6]} 17. Kh1 {[%clk 0:01:31.3]} 17... Bb6 {[%clk 0:02:33.9]}
18. Ng3 {[%clk 0:01:25.9]} 18... h6 {[%clk 0:02:26.5]} 19. Ne4 {[%clk
0:01:18.9]} 19... Qe7 {[%clk 0:02:23.7]} 20. a4 {[%clk 0:01:16.1]} 20... Rxf1+
{[%clk 0:02:23]} 21. Rxf1 {[%clk 0:01:15.3]} 21... Rf8 {[%clk 0:02:23.9]} 22.
Qd1 {[%clk 0:01:11.4]} 22... Bd4 {[%clk 0:02:22.4]} 23. h3 {[%clk 0:00:24.3]}
23... Bxe5 {[%clk 0:02:20.5]} 24. Nf2 {[%clk 0:00:15.8]} 24... Bxb2 {[%clk
0:02:19.1]} 25. Qe2 {[%clk 0:00:08.5]} 25... Bd4 {[%clk 0:02:18.6]} 26. Ng4
{[%clk 0:00:07.4]} 26... Rxf1+ {[%clk 0:02:18.1]} 27. Qxf1 {[%clk 0:00:07.6]}
27... Qf7 {[%clk 0:02:18.8]} 28. Qe2 {[%clk 0:00:06.7]} 28... Qf5 {[%clk
0:02:16.9]} 29. Bxh6 {[%clk 0:00:05.9]} 29... Nc3 {[%clk 0:02:15.5]} 30. Qe1
{[%clk 0:00:05.4]} 30... Kh7 {[%clk 0:02:03.8]} 31. Be3 {[%clk 0:00:05.7]} 31...
c5 {[%clk 0:01:48.4]} 32. Bd2 {[%clk 0:00:04.8]} 32... Qxd3 {[%clk 0:01:45.2]}
33. Qh4+ {[%clk 0:00:04.4]} 33... Kg6 {[%clk 0:01:36.9]} 34. Qg5+ {[%clk
0:00:03.1]} 34... Kf7 {[%clk 0:01:37.3]} 35. Qf4+ {[%clk 0:00:03.4]} 35... Ke8
{[%clk 0:01:29.3]} 36. Qb8+ {[%clk 0:00:03.4]} 36... Kd7 {[%clk 0:01:24.5]} 37.
Qxb7+ {[%clk 0:00:03.8]} 37... Kd6 {[%clk 0:01:24.9]} 38. Bf4+ {[%clk
0:00:03.5]} 38... e5 {[%clk 0:01:25.4]} 39. Qb8+ {[%clk 0:00:02.8]} 39... Kd5
{[%clk 0:01:25.1]} 40. Bxe5 {[%clk 0:00:01.7]} 40... Qd1+ {[%clk 0:01:23.6]} 41.
Kh2 {[%clk 0:00:01.8]} 41... Qg1+ {[%clk 0:01:17.6]} 42. Kg3 {[%clk 0:00:01.8]}
42... Qe1+ {[%clk 0:01:18.3]} 43. Kf4 {[%clk 0:00:01.3]} 43... Qe4+ {[%clk
0:01:17.5]} 44. Kg5 {[%clk 0:00:01.5]} 44... Bxe5 {[%clk 0:01:18.1]} 0-1

[Event "Early-Titled-Tuesday-Blitz-March-12-2024"]
[Site "Chess.com"]
[Date "2024.03.12"]
[Round "2"]
[White "PIwan"]
[Black "AlexPapasimakopoulos"]
[Result "0-1"]
[WhiteElo "2411"]
[BlackElo "2712"]
[TimeControl "180+1"]
[EndTime "8:17:02 PDT"]
[Termination "AlexPapasimakopoulos won by resignation"]

1. c4 {[%clk 0:03:00]} 1... e6 {[%clk 0:02:59.6]} 2. Nc3 {[%clk 0:03:00]} 2...
d5 {[%clk 0:02:59.9]} 3. d4 {[%clk 0:03:00.3]} 3... a6 {[%clk 0:02:59.9]} 4.
cxd5 {[%clk 0:02:58.1]} 4... exd5 {[%clk 0:03:00.8]} 5. Nf3 {[%clk 0:02:58.5]}
5... c6 {[%clk 0:03:01.1]} 6. Bg5 {[%clk 0:02:56]} 6... Be7 {[%clk 0:03:01.1]}
7. Qd2 {[%clk 0:02:51.1]} 7... h6 {[%clk 0:03:00.6]} 8. Bxe7 {[%clk 0:02:46.4]}
8... Nxe7 {[%clk 0:03:01.5]} 9. e3 {[%clk 0:02:44.8]} 9... Bf5 {[%clk 0:03:02]}
10. Be2 {[%clk 0:02:39.3]} 10... Nd7 {[%clk 0:03:01.4]} 11. O-O {[%clk
0:02:39.6]} 11... O-O {[%clk 0:03:01.5]} 12. b4 {[%clk 0:02:37.4]} 12... b5
{[%clk 0:02:56.6]} 13. a4 {[%clk 0:02:35.9]} 13... Nb6 {[%clk 0:02:56.9]} 14. a5
{[%clk 0:02:31.3]} 14... Nc4 {[%clk 0:02:48]} 15. Bxc4 {[%clk 0:02:30.5]} 15...
dxc4 {[%clk 0:02:48.9]} 16. e4 {[%clk 0:02:29.5]} 16... Bg4 {[%clk 0:02:46.4]}
17. Ne5 {[%clk 0:02:29.1]} 17... Be6 {[%clk 0:02:46.6]} 18. Rad1 {[%clk
0:02:26.9]} 18... f6 {[%clk 0:02:46.4]} 19. Nf3 {[%clk 0:02:13.3]} 19... Bg4
{[%clk 0:02:43]} 20. Qf4 {[%clk 0:02:12.8]} 20... Bxf3 {[%clk 0:02:42.7]} 21.
Qxf3 {[%clk 0:02:13.7]} 21... Qd6 {[%clk 0:02:42.7]} 22. Na2 {[%clk 0:01:51.7]}
22... Rad8 {[%clk 0:02:36.4]} 23. Rfe1 {[%clk 0:01:48.2]} 23... Rd7 {[%clk
0:02:31.1]} 24. Qe3 {[%clk 0:01:30.7]} 24... Rfd8 {[%clk 0:02:29.9]} 25. Rd2
{[%clk 0:01:22]} 25... Ng6 {[%clk 0:02:25]} 26. g3 {[%clk 0:01:18.4]} 26... Nf8
{[%clk 0:02:21.9]} 27. Red1 {[%clk 0:01:16.7]} 27... Qe7 {[%clk 0:02:21]} 28. f4
{[%clk 0:01:08.1]} 28... Re8 {[%clk 0:02:16.2]} 29. Re1 {[%clk 0:00:56]} 29...
Red8 {[%clk 0:02:06]} 30. f5 {[%clk 0:00:52.7]} 30... Nh7 {[%clk 0:02:04.7]} 31.
h4 {[%clk 0:00:50.5]} 31... Nf8 {[%clk 0:02:01.2]} 32. Kh1 {[%clk 0:00:49.8]}
32... Rd6 {[%clk 0:02:00.7]} 33. g4 {[%clk 0:00:48.4]} 33... Qd7 {[%clk
0:01:57.9]} 34. Red1 {[%clk 0:00:43.7]} 34... Qb7 {[%clk 0:01:55.6]} 35. Nc3
{[%clk 0:00:32.6]} 35... Re8 {[%clk 0:01:55]} 36. Kh2 {[%clk 0:00:30.8]} 36...
Qe7 {[%clk 0:01:54.4]} 37. Re2 {[%clk 0:00:29.2]} 37... Rd7 {[%clk 0:01:54.7]}
38. Rg2 {[%clk 0:00:22.4]} 38... Qxb4 {[%clk 0:01:54.5]} 39. g5 {[%clk
0:00:22.7]} 39... Qd6+ {[%clk 0:01:46.3]} 40. Kh1 {[%clk 0:00:18.8]} 40... hxg5
{[%clk 0:01:45.6]} 41. hxg5 {[%clk 0:00:18.7]} 41... fxg5 {[%clk 0:01:45.4]} 42.
Rxg5 {[%clk 0:00:18.1]} 42... Qh6+ {[%clk 0:01:45]} 43. Kg2 {[%clk 0:00:18.3]}
43... Nh7 {[%clk 0:01:45.2]} 44. Rg3 {[%clk 0:00:15.5]} 44... Qxe3 {[%clk
0:01:44.3]} 45. Rxe3 {[%clk 0:00:16.4]} 45... Nf6 {[%clk 0:01:42.6]} 46. e5
{[%clk 0:00:15]} 46... Nd5 {[%clk 0:01:39.8]} 47. Rg3 {[%clk 0:00:14.1]} 47...
Nxc3 {[%clk 0:01:36.3]} 48. Rxc3 {[%clk 0:00:15]} 48... Rxe5 {[%clk 0:01:36.4]}
49. dxe5 {[%clk 0:00:14.4]} 49... Rxd1 {[%clk 0:01:36.1]} 50. Kf3 {[%clk
0:00:14.8]} 50... c5 {[%clk 0:01:29.8]} 51. Ke4 {[%clk 0:00:14.6]} 51... Rd4+
{[%clk 0:01:29]} 52. Kf3 {[%clk 0:00:14.3]} 52... Rd3+ {[%clk 0:01:27.7]} 53.
Rxd3 {[%clk 0:00:13.2]} 53... cxd3 {[%clk 0:01:28.6]} 54. Ke3 {[%clk 0:00:13.2]}
54... c4 {[%clk 0:01:29]} 0-1

[Event "Early-Titled-Tuesday-Blitz-March-12-2024"]
[Site "Chess.com"]
[Date "2024.03.12"]
[Round "2"]
[White "Baronessa08"]
[Black "norwaytoadog"]
[Result "0-1"]
[WhiteElo "2545"]
[BlackElo "2334"]
[TimeControl "180+1"]
[EndTime "8:17:02 PDT"]
[Termination "norwaytoadog won by resignation"]

1. Nf3 {[%clk 0:03:00.9]} 1... Nf6 {[%clk 0:02:59.6]} 2. c4 {[%clk 0:02:59.7]}
2... e6 {[%clk 0:02:58.7]} 3. Nc3 {[%clk 0:02:57.9]} 3... Bb4 {[%clk 0:02:58.3]}
4. Qc2 {[%clk 0:02:55.9]} 4... O-O {[%clk 0:02:58]} 5. e3 {[%clk 0:02:50.8]}
5... b6 {[%clk 0:02:53]} 6. b3 {[%clk 0:02:49.7]} 6... Bb7 {[%clk 0:02:51.9]} 7.
Bb2 {[%clk 0:02:48.6]} 7... d5 {[%clk 0:02:51.6]} 8. cxd5 {[%clk 0:02:35]} 8...
exd5 {[%clk 0:02:46.9]} 9. Nb5 {[%clk 0:02:23.8]} 9... Na6 {[%clk 0:02:31.7]}
10. Rc1 {[%clk 0:02:05.5]} 10... c6 {[%clk 0:02:28]} 11. Nbd4 {[%clk 0:02:04.9]}
11... c5 {[%clk 0:02:22.8]} 12. Nf5 {[%clk 0:01:57.1]} 12... g6 {[%clk
0:01:33.9]} 13. Nh6+ {[%clk 0:01:49.5]} 13... Kg7 {[%clk 0:01:18.3]} 14. a3
{[%clk 0:01:20.2]} 14... Kxh6 {[%clk 0:01:11.2]} 15. axb4 {[%clk 0:01:14.7]}
15... Nxb4 {[%clk 0:01:12.1]} 16. Qc3 {[%clk 0:01:06.7]} 16... d4 {[%clk
0:01:11.9]} 17. exd4 {[%clk 0:01:06.8]} 17... Nfd5 {[%clk 0:01:04.1]} 18. Qc4
{[%clk 0:00:41.3]} 18... Ba6 {[%clk 0:01:03.7]} 19. Qxa6 {[%clk 0:00:39.8]}
19... Nxa6 {[%clk 0:01:03.4]} 20. Bxa6 {[%clk 0:00:40.4]} 20... Re8+ {[%clk
0:00:57.7]} 21. Kd1 {[%clk 0:00:36.6]} 21... Nb4 {[%clk 0:00:55]} 22. Bb5 {[%clk
0:00:30.4]} 22... Qd5 {[%clk 0:00:44.7]} 23. Bxe8 {[%clk 0:00:23.7]} 23... Qxb3+
{[%clk 0:00:44.5]} 24. Ke2 {[%clk 0:00:16.3]} 24... Rxe8+ {[%clk 0:00:41.3]} 25.
Ne5 {[%clk 0:00:15.9]} 25... Qxb2 {[%clk 0:00:31.6]} 26. Rc3 {[%clk 0:00:13.8]}
26... cxd4 {[%clk 0:00:29.6]} 27. Rh3+ {[%clk 0:00:13]} 27... Kg7 {[%clk
0:00:29.9]} 28. f4 {[%clk 0:00:13.7]} 28... f6 {[%clk 0:00:27.6]} 0-1

[Event "Early-Titled-Tuesday-Blitz-March-12-2024"]
[Site "Chess.com"]
[Date "2024.03.12"]
[Round "2"]
[White "BestStelker"]
[Black "Jospem"]
[Result "0-1"]
[WhiteElo "2711"]
[BlackElo "3116"]
[TimeControl "180+1"]
[EndTime "8:17:03 PDT"]
[Termination "Jospem won on time"]

1. Nf3 {[%clk 0:03:00.9]} 1... c5 {[%clk 0:02:51.8]} 2. c4 {[%clk 0:03:01.1]}
2... Nc6 {[%clk 0:02:51.9]} 3. Nc3 {[%clk 0:03:01.8]} 3... g6 {[%clk 0:02:52.3]}
4. e3 {[%clk 0:03:02.5]} 4... Bg7 {[%clk 0:02:51.2]} 5. d4 {[%clk 0:03:03.2]}
5... d6 {[%clk 0:02:52]} 6. d5 {[%clk 0:02:52.3]} 6... Na5 {[%clk 0:02:51.9]} 7.
Bd2 {[%clk 0:02:45.9]} 7... Nf6 {[%clk 0:02:50.8]} 8. e4 {[%clk 0:02:41.3]} 8...
Bg4 {[%clk 0:02:49.1]} 9. Be2 {[%clk 0:02:26.4]} 9... Bxf3 {[%clk 0:02:48.9]}
10. gxf3 {[%clk 0:02:27.3]} 10... O-O {[%clk 0:02:48.5]} 11. h4 {[%clk
0:02:25.6]} 11... e6 {[%clk 0:02:42.7]} 12. h5 {[%clk 0:02:14.4]} 12... Nxh5
{[%clk 0:02:38.3]} 13. f4 {[%clk 0:02:14.5]} 13... Nf6 {[%clk 0:02:34.8]} 14.
dxe6 {[%clk 0:01:58]} 14... fxe6 {[%clk 0:02:34.9]} 15. e5 {[%clk 0:01:44.2]}
15... Ne8 {[%clk 0:02:19.3]} 16. Bg4 {[%clk 0:01:40.2]} 16... Qe7 {[%clk
0:02:15.8]} 17. Qe2 {[%clk 0:01:29.6]} 17... Nc6 {[%clk 0:01:55.7]} 18. exd6
{[%clk 0:01:25]} 18... Nxd6 {[%clk 0:01:56.6]} 19. Bxe6+ {[%clk 0:01:08.3]}
19... Kh8 {[%clk 0:01:56.8]} 20. Nd5 {[%clk 0:01:09]} 20... Qd8 {[%clk
0:01:43.2]} 21. O-O-O {[%clk 0:01:06.2]} 21... Nd4 {[%clk 0:01:36.7]} 22. Qg4
{[%clk 0:00:37.6]} 22... Qe8 {[%clk 0:01:00.3]} 23. Rxh7+ {[%clk 0:00:17.5]}
23... Kxh7 {[%clk 0:01:01.2]} 24. Rh1+ {[%clk 0:00:17.8]} 24... Bh6 {[%clk
0:01:01.9]} 25. f5 {[%clk 0:00:18.4]} 25... N6xf5 {[%clk 0:00:58.3]} 26. Bxh6
{[%clk 0:00:09.5]} 26... Qxe6 {[%clk 0:00:50.5]} 27. Bxf8+ {[%clk 0:00:06.4]}
27... Kg8 {[%clk 0:00:51.2]} 28. Bxc5 {[%clk 0:00:03]} 28... Rc8 {[%clk
0:00:51.7]} 29. Bxd4 {[%clk 0:00:02.4]} 29... Rxc4+ {[%clk 0:00:52.4]} 30. Kb1
{[%clk 0:00:02.6]} 30... Rxd4 {[%clk 0:00:53]} 31. Qh3 {[%clk 0:00:02.1]} 31...
Rh4 {[%clk 0:00:48.7]} 32. Qf3 {[%clk 0:00:02.8]} 32... Nd4 {[%clk 0:00:41.1]}
33. Qg2 {[%clk 0:00:01.8]} 33... Qf5+ {[%clk 0:00:40.5]} 0-1

[Event "Early-Titled-Tuesday-Blitz-March-12-2024"]
[Site "Chess.com"]
[Date "2024.03.12"]
[Round "2"]
[White "Lady_Nika"]
[Black "Resignify"]
[Result "1-0"]
[WhiteElo "2533"]
[BlackElo "2260"]
[TimeControl "180+1"]
[EndTime "8:17:04 PDT"]
[Termination "Lady_Nika won by resignation"]

1. g4 {[%clk 0:02:52.7]} 1... d6 {[%clk 0:02:56.9]} 2. h3 {[%clk 0:02:52.6]}
2... c6 {[%clk 0:02:54.8]} 3. Bg2 {[%clk 0:02:52.8]} 3... e5 {[%clk 0:02:54.7]}
4. e4 {[%clk 0:02:52.4]} 4... Nd7 {[%clk 0:02:52.7]} 5. d3 {[%clk 0:02:52.4]}
5... Be7 {[%clk 0:02:50.3]} 6. Nc3 {[%clk 0:02:52.3]} 6... Bg5 {[%clk 0:02:50]}
7. Bxg5 {[%clk 0:02:51]} 7... Qxg5 {[%clk 0:02:50.9]} 8. Qd2 {[%clk 0:02:51.6]}
8... Qxd2+ {[%clk 0:02:48.3]} 9. Kxd2 {[%clk 0:02:52.5]} 9... Ne7 {[%clk
0:02:46.9]} 10. Nge2 {[%clk 0:02:52.4]} 10... Ng6 {[%clk 0:02:42.2]} 11. Rhf1
{[%clk 0:02:51.4]} 11... Nc5 {[%clk 0:02:31.4]} 12. f4 {[%clk 0:02:50]} 12...
exf4 {[%clk 0:02:28.2]} 13. Nxf4 {[%clk 0:02:50.1]} 13... Nxf4 {[%clk
0:02:24.5]} 14. Rxf4 {[%clk 0:02:51]} 14... Ne6 {[%clk 0:02:24.9]} 15. Rf2
{[%clk 0:02:51.2]} 15... O-O {[%clk 0:02:24.6]} 16. Ne2 {[%clk 0:02:48.8]} 16...
Bd7 {[%clk 0:02:21.3]} 17. Raf1 {[%clk 0:02:48.6]} 17... Rae8 {[%clk 0:02:19.7]}
18. c4 {[%clk 0:02:48.8]} 18... c5 {[%clk 0:02:12.8]} 19. Ng3 {[%clk 0:02:31.9]}
19... Nd4 {[%clk 0:02:11.5]} 20. Kc3 {[%clk 0:02:19.8]} 20... b6 {[%clk
0:02:03.3]} 21. a3 {[%clk 0:02:17.3]} 21... a5 {[%clk 0:02:01.9]} 22. b4 {[%clk
0:02:17.5]} 22... axb4+ {[%clk 0:02:01.6]} 23. axb4 {[%clk 0:02:17.6]} 23... Nc6
{[%clk 0:01:58.8]} 24. b5 {[%clk 0:02:14.3]} 24... Ne5 {[%clk 0:01:55.6]} 25.
Ra2 {[%clk 0:02:11.9]} 25... Ra8 {[%clk 0:01:54.8]} 26. Rfa1 {[%clk 0:02:11.9]}
26... Rxa2 {[%clk 0:01:54.7]} 27. Rxa2 {[%clk 0:02:12.8]} 27... Rb8 {[%clk
0:01:49.8]} 28. Ne2 {[%clk 0:02:05.8]} 28... Kf8 {[%clk 0:01:11.1]} 29. Nf4
{[%clk 0:02:03.8]} 29... Be6 {[%clk 0:01:10]} 30. Ra7 {[%clk 0:01:57.9]} 30...
h6 {[%clk 0:00:50.6]} 31. Bf1 {[%clk 0:01:57.5]} 31... Ke8 {[%clk 0:00:32.2]}
32. Nxe6 {[%clk 0:01:55.6]} 32... fxe6 {[%clk 0:00:32.3]} 33. Rxg7 {[%clk
0:01:55]} 33... Kf8 {[%clk 0:00:32.4]} 34. Ra7 {[%clk 0:01:53.3]} 34... Ke8
{[%clk 0:00:19.3]} 35. Be2 {[%clk 0:01:47.5]} 35... Nd7 {[%clk 0:00:19]} 36. h4
{[%clk 0:01:45.7]} 36... Ke7 {[%clk 0:00:19.2]} 37. d4 {[%clk 0:01:40.9]} 37...
cxd4+ {[%clk 0:00:17.9]} 38. Kxd4 {[%clk 0:01:41.8]} 38... Rc8 {[%clk
0:00:17.7]} 39. Bf3 {[%clk 0:01:36.1]} 39... Rf8 {[%clk 0:00:17.7]} 40. Be2
{[%clk 0:01:36.1]} 40... Rf2 {[%clk 0:00:15.5]} 41. Ke3 {[%clk 0:01:34.6]} 41...
Rh2 {[%clk 0:00:15.5]} 42. h5 {[%clk 0:01:28.6]} 42... Rg2 {[%clk 0:00:13.8]}
43. Bf3 {[%clk 0:01:28.2]} 43... Rg1 {[%clk 0:00:13.2]} 44. e5 {[%clk
0:01:27.7]} 44... dxe5 {[%clk 0:00:11.9]} 45. Bc6 {[%clk 0:01:27.8]} 45... Rd1
{[%clk 0:00:11.4]} 46. Bxd7 {[%clk 0:01:26.9]} 46... Rxd7 {[%clk 0:00:12.3]} 47.
Rxd7+ {[%clk 0:01:26.8]} 47... Kxd7 {[%clk 0:00:13.2]} 48. g5 {[%clk 0:01:25.5]}
48... hxg5 {[%clk 0:00:08]} 49. h6 {[%clk 0:01:25.8]} 1-0